bitfinex/quotes_ETHUSD_20250802
["timestamp","ask_amount","ask_price","bid_price","bid_amount"]
[1754151086904,3.03615747,3457.1,3456.2,0.002]
[1754151087109,3.9212,3457.1,3456.2,0.002]
[1754151087531,0.9212,3457.1,3456.2,0.002]
[1754151087841,4.674,3457.0,3456.2,0.002]
[1754151088005,5.1466,3457.0,3456.2,0.002]
[1754151088703,4.671,3456.9,3456.2,0.4525]
[1754151088908,0.55,3457.4,3456.3,0.0282628]
[1754151089103,4.672,3457.3,3456.4,1.23972073]
[1754151089330,0.4726,3457.5,3456.4,1.23972073]
[1754151089530,3.0,3457.3,3456.5,0.9085]
[1754151089717,4.671,3457.4,3456.6,0.4505]
[1754151090342,0.4726,3457.4,3456.4,1.23972073]
[1754151090561,0.4726,3457.4,3456.2,0.002]
[1754151090562,5.15475538,3457.3,3456.2,0.002]
[1754151090766,5.1186,3457.3,3456.2,0.4525]
[1754151090921,1.0226,3457.2,3456.2,0.4525]
[1754151091113,0.55,3457.2,3456.2,0.002]
[1754151091456,0.9212,3457.1,3456.2,0.002]
[1754151091623,0.03615851,3457.0,3456.2,0.002]
[1754151091808,0.4726,3457.0,3456.2,0.002]
[1754151092008,0.55,3456.8,3456.2,0.002]
[1754151092445,0.4726,3456.7,3456.2,0.002]
[1754151092943,0.61412,3457.1,3456.2,0.002]
[1754151092944,0.9212,3456.6,3456.2,0.002]
[1754151093314,4.671,3456.7,3456.2,0.4525]
[1754151093720,3.0,3457.3,3456.3,0.4505]
[1754151093928,3.0,3457.1,3456.3,0.4505]
[1754151094121,3.0,3457.1,3456.4,0.83219445]
[1754151094333,0.95735851,3457.0,3456.2,0.002]
[1754151094534,0.9212,3457.0,3456.2,0.002]
[1754151094766,0.9212,3456.9,3456.2,0.002]
[1754151095283,0.9212,3457.2,3456.2,0.002]
[1754151095443,4.669,3456.8,3456.3,0.458]
[1754151095644,0.9222,3457.6,3456.4,1.74069445]
[1754151095645,4.668,3457.0,3456.4,1.74069445]
[1754151095847,0.4726,3456.9,3456.4,0.83219445]
[1754151096056,0.9212,3456.8,3456.2,0.002]
[1754151096903,0.9212,3456.8,3456.2,0.4525]
[1754151096904,4.67,3456.8,3456.2,0.4525]
[1754151097067,0.95736165,3456.7,3456.2,0.002]
[1754151097248,0.55,3456.6,3456.2,0.002]
[1754151097450,0.91773617,3456.5,3456.2,0.002]
[1754151097676,0.95389991,3456.5,3456.2,0.002]
[1754151097859,0.9212,3456.4,3456.2,0.002]
[1754151098063,0.58616584,3456.3,3456.2,0.002]
[1754151098261,1.50736584,3456.3,3456.2,0.002]
[1754151098514,1.74987604,3456.3,3456.2,0.002]
[1754151098653,1.7137102,3456.3,3456.2,0.002]
[1754151098986,4.7137102,3456.3,3456.2,0.002]
[1754151099191,9.3857102,3456.3,3456.2,0.002]
[1754151099392,4.7137102,3456.3,3456.2,0.002]
[1754151099562,5.1426,3456.3,3456.2,0.002]
[1754151100101,8.5912,3456.3,3456.2,0.002]
[1754151100302,9.1412,3456.3,3456.2,0.002]
[1754151100504,3.9212,3456.3,3456.2,0.002]
[1754151100665,3.0,3456.3,3456.2,0.002]
[1754151100867,7.677,3456.3,3456.2,0.002]
[1754151101060,8.1496,3456.3,3456.2,0.002]
[1754151101263,8.5982,3456.3,3456.2,0.002]
[1754151101470,3.0,3456.3,3456.2,0.002]
[1754151101755,4.676,3456.3,3456.2,0.002]
[1754151101951,0.001,3457.6,3456.2,0.9105]
[1754151102187,4.679,3457.3,3456.3,8.3482012]
[1754151102376,0.001,3457.6,3457.0,7.4114445]
[1754151102578,0.001,3457.6,3457.5,7.4114445]
[1754151103076,0.001,3457.6,3457.5,8.3199445]
[1754151103668,0.001,3457.6,3457.5,0.9085]
[1754151104180,0.001,3457.6,3457.1,3.458]
[1754151104490,0.001,3457.6,3457.5,0.9085]
[1754151104695,0.001,3457.6,3457.5,0.93673861]
[1754151105490,0.001,3457.6,3457.5,0.9085]
[1754151105694,0.001,3457.6,3457.5,7.8619445]
[1754151105867,0.001,3457.6,3457.5,8.3199445]
[1754151106075,0.001,3457.6,3457.5,9.2867059]
[1754151106367,0.001,3457.6,3457.5,1.4172614]
[1754151106572,0.001,3457.6,3457.2,1.08694445]
[1754151106892,0.001,3457.6,3456.9,0.47874542]
[1754151107091,0.001,3457.6,3456.9,0.02824542]
[1754151107297,0.001,3457.6,3457.0,0.458]
[1754151107593,0.001,3457.6,3457.2,7.4114445]
[1754151107797,0.001,3457.6,3457.4,0.1448]
[1754151107960,0.001,3457.6,3457.5,0.02823924]
[1754151108155,0.001,3457.6,3457.5,0.9085]
[1754151109683,0.001,3457.6,3457.5,0.4505]
[1754151109895,0.001,3457.6,3457.5,0.9085]
[1754151110101,0.001,3457.6,3457.5,0.4505]
[1754151110287,0.001,3457.6,3457.1,0.4505]
[1754151110600,0.001,3457.6,3456.8,0.4505]
[1754151110899,0.001,3457.6,3456.9,0.02824552]
[1754151111200,0.001,3457.6,3456.8,8.4647445]
[1754151111364,0.001,3457.6,3456.9,0.02824797]
[1754151111700,0.001,3457.6,3456.9,1.33116722]
[1754151113498,0.001,3457.6,3457.0,0.4839]
[1754151113703,0.001,3457.6,3457.1,0.02824506]
[1754151114268,0.001,3457.6,3456.9,1.78681925]
[1754151116203,0.5004,3457.6,3456.7,5.1294]
[1754151116883,0.5004,3457.6,3456.7,4.673]
[1754151117365,0.001,3457.6,3456.8,7.4114445]
[1754151117525,0.001,3457.6,3456.8,8.3517445]
[1754151118279,0.975,3457.6,3456.6,4.671]
[1754151118810,0.4994,3457.5,3456.5,0.4839]
[1754151119009,0.4994,3457.5,3456.5,1.88445646]
[1754151120201,0.4994,3457.5,3456.6,0.51215297]
[1754151120397,0.4756,3457.6,3456.6,0.51215297]
[1754151120600,0.001,3457.6,3456.7,0.4564]
[1754151120805,0.001,3457.6,3456.8,8.16050487]
[1754151120977,0.001,3457.6,3456.9,0.02824797]
[1754151121180,0.001,3457.6,3456.9,0.96854797]
[1754151121581,0.001,3457.6,3456.9,0.02824797]
[1754151121782,0.001,3457.6,3456.7,0.4839]
[1754151122021,0.5004,3457.6,3456.7,0.4839]
[1754151122182,0.001,3457.6,3456.7,1.12803201]
[1754151122391,0.001,3457.6,3456.8,8.37999393]
[1754151122584,0.001,3457.6,3456.8,8.3517445]
[1754151122820,0.001,3457.6,3457.3,7.4114445]
[1754151122983,0.001,3457.6,3456.9,0.9403]
[1754151123310,0.001,3457.6,3457.2,0.4839]
[1754151123482,0.001,3457.6,3457.2,0.9403]
[1754151123808,0.001,3457.6,3457.3,0.4839]
[1754151124321,0.001,3457.6,3457.4,0.9403]
[1754151124710,0.001,3457.6,3457.5,0.83517445]
[1754151124950,0.001,3457.6,3457.1,0.4564]
[1754151125159,0.001,3457.6,3457.1,0.9403]
[1754151125336,0.001,3457.6,3457.1,0.4564]
[1754151125539,0.001,3457.6,3457.2,0.4839]
[1754151126049,0.001,3457.6,3457.3,0.4839]
[1754151126566,0.001,3457.6,3457.4,0.4839]
[1754151126772,0.001,3457.6,3457.5,0.02823924]
[1754151126953,0.001,3457.6,3457.5,0.96853924]
[1754151127514,0.001,3457.6,3457.5,0.9403]
[1754151127864,0.001,3457.6,3457.5,0.4839]
[1754151128016,0.001,3457.6,3457.5,1.58669421]
[1754151128356,0.001,3457.6,3457.5,2.04309421]
[1754151128713,0.001,3457.6,3457.5,2.0148556]
[1754151129069,0.001,3457.6,3457.5,1.5584556]
[1754151129224,0.001,3457.6,3457.4,9.57180304]
[1754151129410,0.001,3457.6,3457.5,0.96853924]
[1754151129615,0.001,3457.6,3457.5,0.96853861]
[1754151130352,0.001,3458.0,3457.9,9.57180304]
[1754151130524,0.001,3458.2,3457.9,9.57180304]
[1754151130848,0.001,3458.2,3458.0,6.58570845]
[1754151131051,0.001,3458.7,3458.6,9.57180304]
[1754151131630,0.001,3458.7,3458.6,10.51210304]
[1754151132215,0.001,3458.7,3458.6,10.05570304]
[1754151132430,0.001,3458.7,3458.1,0.1448]
[1754151132431,0.001,3458.7,3458.2,0.4839]
[1754151132631,0.001,3458.7,3457.4,3.0]
[1754151132632,0.974,3458.6,3457.1,0.1448]
[1754151132867,0.974,3458.5,3457.0,1.84988765]
[1754151133169,0.974,3458.5,3457.2,0.4839]
[1754151133478,0.974,3458.4,3457.2,0.4839]
[1754151133636,0.974,3458.4,3457.4,0.0282356]
[1754151134050,0.974,3458.4,3457.4,0.5121356]
[1754151134376,0.974,3458.4,3457.5,1.07737916]
[1754151134950,0.974,3458.4,3457.4,0.5121356]
[1754151134951,0.4746,3458.4,3457.4,0.5121356]
[1754151135148,0.4746,3458.4,3457.3,0.23345298]
[1754151135149,0.4994,3458.3,3457.3,0.23345298]
[1754151135775,0.001,3458.7,3457.5,7.39466024]
[1754151135985,3.975,3458.7,3457.5,7.87856024]
[1754151136211,3.4756,3458.7,3457.6,0.87132132]
[1754151136354,0.4994,3458.6,3457.6,0.8995521]
[1754151136692,0.4994,3458.6,3457.7,0.4839]
[1754151136862,0.4994,3458.6,3457.6,0.87132132]
[1754151137063,0.4746,3458.5,3457.3,0.23345298]
[1754151137262,0.4746,3458.5,3457.4,0.51213496]
[1754151137467,3.4746,3458.5,3457.4,0.51213496]
[1754151137663,0.001,3458.7,3457.4,0.96853496]
[1754151137889,0.4756,3458.7,3457.4,0.96853496]
[1754151138077,0.4994,3458.6,3457.5,2.12334482]
[1754151138388,0.4994,3458.6,3457.6,0.51213142]
[1754151138752,0.4746,3458.5,3457.5,1.63944482]
[1754151138955,0.4994,3458.4,3457.5,1.63944482]
[1754151139256,0.4746,3458.3,3457.5,1.63944482]
[1754151139494,0.4994,3458.2,3457.5,1.63944482]
[1754151139792,0.4994,3458.2,3457.6,0.53567978]
[1754151139967,0.4994,3458.2,3457.5,1.63944482]
[1754151140168,0.4994,3458.2,3457.3,0.71735298]
[1754151140492,0.001,3458.7,3457.7,7.39466024]
[1754151140493,5.1484,3458.7,3457.7,7.39466024]
[1754151140652,5.1484,3458.7,3457.8,0.02822787]
[1754151140860,0.5004,3458.7,3457.9,0.74228881]
[1754151141196,0.001,3458.7,3458.0,0.4839]
[1754151141401,0.001,3458.7,3458.2,7.39466024]
[1754151141987,0.001,3458.7,3458.3,0.95752061]
[1754151142190,0.001,3458.7,3458.4,0.83521809]
[1754151142402,0.001,3458.7,3458.4,1.76451809]
[1754151142690,0.001,3458.7,3458.4,1.31351809]
[1754151142870,0.001,3458.7,3458.4,0.4783]
[1754151143694,0.001,3458.7,3458.5,0.4783]
[1754151144006,0.001,3458.7,3458.1,0.4783]
[1754151144305,0.4871,3458.6,3457.9,0.74228881]
[1754151144606,0.001,3458.7,3458.0,0.4783]
[1754151144808,0.001,3458.7,3458.2,7.39466024]
[1754151145109,0.001,3458.7,3458.3,0.02822061]
[1754151145404,0.001,3458.7,3458.3,0.9293]
[1754151145624,0.001,3458.7,3458.4,0.95751915]
[1754151145970,0.001,3458.7,3458.5,0.9293]
[1754151146291,0.001,3458.7,3458.6,0.39575192]
[1754151146603,0.001,3458.7,3458.6,1.35326753]
[1754151146977,0.001,3458.7,3458.6,0.87496753]
[1754151147330,0.001,3458.7,3458.6,1.35326753]
[1754151147469,0.001,3458.7,3458.6,1.71502646]
[1754151147986,0.001,3458.7,3458.6,1.68681085]
[1754151148193,0.001,3458.7,3458.6,9.3520271]
[1754151148400,0.001,3458.7,3458.6,9.32381085]
[1754151149214,0.001,3458.7,3458.6,9.87381085]
[1754151150726,0.001,3458.7,3458.6,10.74279285]
[1754151151074,0.001,3459.1,3458.7,0.55]
[1754151151304,0.001,3459.1,3459.0,10.39466024]
[1754151151505,0.001,3459.1,3459.0,15.02366024]
[1754151151708,0.9397,3460.7,3459.1,3.55]
[1754151152049,0.9397,3460.7,3459.8,7.39466024]
[1754151152248,0.9397,3461.0,3459.9,0.02818463]
[1754151152544,0.9397,3461.0,3459.9,0.95748463]
[1754151152748,0.4871,3461.3,3460.0,0.4783]
[1754151152953,0.4871,3461.3,3460.1,1.4711924]
[1754151153114,0.4526,3461.2,3460.2,4.628]
[1754151153456,0.4871,3461.1,3460.3,0.02817564]
[1754151153609,0.4871,3461.1,3460.3,8.04593588]
[1754151153805,0.4526,3461.2,3460.4,0.02817483]
[1754151154064,0.4871,3461.4,3460.5,0.4783]
[1754151154266,0.4871,3461.4,3460.6,0.02817002]
[1754151154563,0.4871,3461.4,3460.7,0.6231]
[1754151154856,0.4871,3461.4,3460.8,9.55285934]
[1754151155008,0.4871,3461.4,3460.8,11.03315527]
[1754151156145,0.4526,3461.6,3460.8,11.03315527]
[1754151156146,0.4526,3461.6,3460.9,0.17296566]
[1754151156359,0.4871,3461.8,3461.3,9.55285934]
[1754151156859,0.4526,3462.4,3461.7,9.55285934]
[1754151157015,0.4871,3462.3,3461.7,9.55285934]
[1754151159651,0.4871,3462.8,3461.8,0.4783]
[1754151159949,0.4871,3462.8,3461.8,0.6231]
[1754151160844,0.4526,3462.7,3461.8,0.6231]
[1754151161050,0.4871,3462.6,3461.8,5.2391]
[1754151161361,0.001,3462.9,3461.8,5.2391]
[1754151161362,0.001,3462.9,3462.5,9.55285934]
[1754151161568,0.001,3465.0,3462.6,9.07172065]
[1754151161772,0.001,3465.0,3464.8,9.55285934]
[1754151161914,0.001,3465.0,3464.9,3.02808482]
[1754151162122,0.001,3465.0,3464.9,8.20638482]
[1754151162316,0.001,3465.0,3464.9,7.7]
[1754151162550,0.001,3465.0,3464.7,0.144]
[1754151162762,0.001,3465.0,3464.7,0.7883]
[1754151162968,0.001,3465.0,3464.9,0.4783]
[1754151163467,0.001,3465.0,3464.5,3.21823391]
[1754151163468,0.9407,3465.0,3464.4,3.0]
[1754151163643,0.9407,3465.0,3464.9,9.55285934]
[1754151163644,0.001,3465.0,3464.9,9.55285934]
[1754151163824,0.001,3465.4,3465.0,3.0]
[1754151164019,0.4871,3466.6,3465.0,3.0]
[1754151164020,0.4381,3466.6,3465.7,9.55285934]
[1754151164248,0.48865942,3466.5,3464.9,0.95528593]
[1754151164415,0.48865942,3466.5,3462.7,2.30237661]
[1754151164416,30.55,3466.4,3462.7,2.30237661]
[1754151164620,0.55,3466.2,3464.0,0.144]
[1754151164817,0.55,3466.0,3463.7,0.4783]
[1754151165148,0.55,3465.2,3463.4,4.751]
[1754151165349,0.55,3465.0,3463.5,3.0]
[1754151165550,0.15886636,3465.9,3463.6,0.02810363]
[1754151165551,0.4526,3464.9,3463.6,0.02810363]
[1754151165757,0.4526,3464.9,3463.6,0.50640363]
[1754151165918,4.752,3465.3,3464.0,7.3671715]
[1754151166118,4.752,3465.3,3464.1,6.44411164]
[1754151166332,0.9397,3465.2,3464.1,0.73671715]
[1754151166530,4.752,3465.3,3463.7,5.3723]
[1754151166731,0.9397,3465.1,3463.7,5.3723]
[1754151166965,0.9397,3465.1,3463.8,0.0281001]
[1754151167158,0.9397,3465.1,3463.9,0.144]
[1754151167476,0.4871,3465.0,3463.9,0.72914001]
[1754151168071,0.4526,3464.9,3463.9,0.58514001]
[1754151168270,0.4871,3464.8,3463.7,4.743]
[1754151168569,0.4526,3464.7,3463.7,4.743]
[1754151168871,4.744,3465.2,3464.2,0.144]
[1754151168872,0.4871,3465.2,3464.2,0.144]
[1754151169073,3.03606879,3465.6,3464.2,1.19511715]
[1754151169367,0.9397,3465.1,3464.2,1.19511715]
[1754151169774,0.9397,3465.1,3464.2,1.05111715]
[1754151170968,0.4871,3465.3,3464.2,1.07921082]
[1754151171181,0.9397,3465.8,3464.4,7.3671715]
[1754151171472,7.3671715,3468.1,3464.2,1.07921082]
[1754151171473,0.9397,3466.2,3465.0,3.144]
[1754151171671,0.9397,3466.2,3465.1,0.9573743]
[1754151172269,4.738,3466.7,3464.9,3.0]
[1754151172270,0.95886358,3466.1,3464.9,3.0]
[1754151172456,0.03606358,3466.1,3464.9,3.0]
[1754151172662,0.9228,3466.0,3465.0,0.7882]
[1754151172971,0.001,3465.5,3465.1,0.50507557]
[1754151173132,0.001,3465.5,3465.2,0.5949]
[1754151173335,0.001,3465.5,3465.2,0.21939682]
[1754151173536,0.001,3465.5,3465.4,10.3671715]
[1754151174285,0.9228,3467.4,3465.5,3.0]
[1754151174446,6.942,3467.7,3466.5,7.3671715]
[1754151174641,6.942,3467.7,3466.6,0.50504308]
[1754151175073,0.9228,3467.9,3466.6,0.477]
[1754151175273,0.9228,3467.9,3466.7,0.84390715]
[1754151175476,0.9228,3467.8,3466.7,0.84390715]
[1754151175677,0.9228,3467.7,3466.2,3.477]
[1754151175978,0.9228,3467.7,3466.4,3.0]
[1754151176145,0.9228,3467.7,3466.5,0.621]
[1754151176345,0.4822,3467.6,3466.5,0.621]
[1754151177590,4.727,3467.8,3466.6,0.95594372]
[1754151177772,1.4349,3468.1,3466.7,0.93469437]
[1754151177947,1.4349,3468.1,3466.8,7.87220915]
[1754151177948,4.726,3468.1,3466.8,7.87220915]
[1754151178149,6.942,3468.3,3467.3,7.3671715]
[1754151178376,5.6488,3468.5,3467.4,0.477]
[1754151178696,0.28892,3469.8,3467.5,0.02802563]
[1754151178877,0.4822,3469.3,3468.3,10.3671715]
[1754151179080,0.4822,3468.9,3468.3,3.0]
[1754151179402,0.4822,3468.9,3467.8,7.3671715]
[1754151179544,0.4822,3468.9,3467.8,7.5111715]
[1754151179748,0.9228,3468.6,3467.7,3.0]
[1754151179947,0.9228,3468.6,3467.7,3.92874145]
[1754151180357,0.4406,3468.6,3467.7,0.92874145]
[1754151180575,0.4832,3468.4,3467.7,0.92874145]
[1754151181081,0.001,3468.4,3467.5,0.22192195]
[1754151181283,0.001,3468.4,3467.8,3.0]
[1754151181579,0.001,3468.4,3468.2,7.3671715]
[1754151181782,0.001,3468.4,3467.8,3.0]
[1754151181984,0.001,3468.4,3468.0,0.477]
[1754151182350,0.001,3468.4,3468.2,7.3671715]
[1754151182773,0.001,3468.4,3468.3,0.477]
[1754151183478,0.001,3468.4,3468.0,3.0]
[1754151183685,0.001,3468.4,3467.9,2.08030715]
[1754151183686,0.001,3468.4,3468.1,0.02801697]
[1754151183875,0.001,3468.4,3468.2,0.477]
[1754151184273,0.001,3468.4,3468.1,1.07100591]
[1754151184479,0.001,3468.4,3468.1,1.09902225]
[1754151185050,0.001,3468.4,3468.1,1.07100591]
[1754151185246,0.001,3468.4,3467.7,3.0]
[1754151185450,0.9228,3468.3,3467.5,0.70449334]
[1754151185763,0.4822,3468.2,3467.5,0.70449334]
[1754151185958,0.4822,3468.2,3467.5,0.22129334]
[1754151186598,0.4406,3468.1,3467.2,4.728]
[1754151186765,0.4822,3468.0,3467.1,0.21929646]
[1754151186970,0.4406,3467.9,3467.0,0.02803413]
[1754151187308,0.4406,3467.9,3466.8,4.727]
[1754151187454,0.4822,3467.8,3466.9,0.56616944]
[1754151187653,0.5182459,3467.8,3466.9,0.21654469]
[1754151187855,0.4406,3467.7,3466.3,4.723]
[1754151188067,0.4822,3467.6,3466.4,3.0]
[1754151188390,0.4822,3467.6,3466.0,4.722]
[1754151188391,0.4406,3467.5,3466.0,4.722]
[1754151188591,0.4822,3467.4,3466.2,0.21747639]
[1754151188793,0.4822,3467.4,3466.1,0.78180715]
[1754151189095,0.4406,3467.3,3466.1,0.78180715]
[1754151189303,0.4822,3467.2,3465.8,3.0]
[1754151189501,0.4822,3467.2,3465.9,0.02805637]
[1754151189700,0.4822,3467.2,3466.0,0.477]
[1754151190407,4.719,3467.5,3466.3,3.0]
[1754151190563,0.4406,3467.8,3466.7,7.3671715]
[1754151190765,0.51824694,3467.7,3466.5,0.477]
[1754151190998,0.4406,3467.6,3466.4,1.0846125]
[1754151191203,0.03604902,3467.5,3466.4,1.0846125]
[1754151191499,0.9228,3467.9,3466.3,3.0]
[1754151191662,0.9228,3467.9,3466.7,7.3671715]
[1754151191860,0.9228,3467.9,3466.8,0.02803892]
[1754151192063,5.2012,3468.2,3466.9,0.4509]
[1754151192289,0.4822,3468.2,3467.0,1.16034517]
[1754151192596,0.47664279,3468.1,3467.0,1.13231104]
[1754151192967,0.47664279,3468.1,3466.4,3.477]
[1754151192968,0.4822,3468.0,3466.4,3.477]
[1754151193163,0.9906,3467.9,3466.4,3.477]
[1754151193370,0.9228,3467.9,3466.7,7.3671715]
[1754151193565,0.9228,3467.9,3466.8,0.50503892]
[1754151193760,0.9228,3467.9,3466.9,0.81525852]
[1754151193965,0.9228,3467.9,3466.9,0.78722104]
[1754151196665,0.9228,3467.8,3466.9,0.78722104]
[1754151196966,0.9228,3467.7,3466.6,3.0]
[1754151197168,0.4822,3468.0,3466.8,3.0]
[1754151197358,0.4406,3468.1,3466.9,0.50503684]
[1754151197560,0.4406,3468.1,3467.0,0.4509]
[1754151197760,0.4406,3468.1,3467.1,0.02803332]
[1754151197992,0.4406,3468.1,3467.2,0.477]
[1754151198194,0.4406,3468.1,3467.3,0.02803043]
[1754151198602,0.4406,3468.1,3467.2,0.477]
[1754151198801,0.4406,3468.1,3467.3,0.02803205]
[1754151200168,0.4406,3468.1,3467.2,0.477]
[1754151200803,0.001,3468.4,3467.2,8.2950715]
[1754151201014,0.001,3468.4,3467.7,7.3671715]
[1754151201414,0.001,3468.4,3467.8,0.477]
[1754151203130,0.001,3468.4,3467.5,0.144]
[1754151203269,0.9501,3468.4,3467.3,0.83231036]
[1754151203470,0.98514071,3468.3,3467.2,0.22094074]
[1754151203720,0.9491,3468.3,3466.8,3.0]
[1754151203933,0.50174175,3468.2,3466.7,0.4736]
[1754151204246,0.9491,3468.2,3466.7,0.4736]
[1754151204513,6.1901,3468.1,3466.7,0.4736]
[1754151204722,6.1901,3468.1,3466.2,0.4736]
[1754151204723,0.55,3467.9,3466.2,0.4736]
[1754151204881,0.55,3467.7,3465.9,7.3671715]
[1754151205080,0.55,3467.5,3466.0,0.78407715]
[1754151205317,0.9491,3467.4,3466.0,1.25767715]
[1754151205517,0.55,3467.5,3466.0,1.25767715]
[1754151205518,0.9491,3467.3,3466.0,1.25767715]
[1754151205721,0.55,3467.5,3466.0,1.25767715]
[1754151205902,0.9491,3467.2,3466.0,1.25767715]
[1754151206097,3.0,3468.0,3466.1,0.86248487]
[1754151206098,0.9491,3467.1,3466.1,0.86248487]
[1754151206424,0.4834,3467.0,3466.1,0.86248487]
[1754151207416,0.50175526,3466.9,3466.1,0.86248487]
[1754151207631,0.4834,3466.8,3465.7,0.4736]
[1754151208388,1.0157,3466.7,3465.4,12.5247715]
[1754151208584,5.06901,3468.7,3465.4,12.5247715]
[1754151208585,0.9491,3466.6,3465.4,12.0511715]
[1754151208838,0.9491,3466.6,3465.5,2.81311715]
[1754151208978,0.9491,3466.6,3465.6,0.4736]
[1754151210128,0.9491,3466.6,3465.7,0.02806308]
[1754151210719,0.55,3467.7,3465.7,0.02806308]
[1754151211032,0.9491,3466.8,3465.5,0.9145]
[1754151211192,0.9491,3466.7,3465.6,0.84256715]
[1754151211409,0.98515838,3466.6,3465.5,0.21818985]
[1754151211592,0.98515838,3466.6,3465.3,0.144]
[1754151211593,0.9491,3466.5,3465.3,0.144]
[1754151211793,0.9491,3466.5,3465.1,0.4756]
[1754151212004,0.98516046,3466.4,3465.1,0.4756]
[1754151212228,0.55,3466.9,3465.2,1.08427715]
[1754151212428,0.9491,3466.3,3465.3,0.4736]
[1754151212796,0.9491,3466.3,3465.4,0.02806932]
[1754151212995,0.9491,3466.3,3465.5,0.4736]
[1754151213618,0.9491,3466.3,3465.3,0.65502091]
[1754151213619,0.4834,3466.2,3465.3,0.21412091]
[1754151213821,0.4834,3466.2,3465.4,0.17412981]
[1754151215295,0.4657,3466.3,3465.4,0.17412981]
[1754151215496,0.4657,3466.3,3465.5,0.4736]
[1754151215693,0.4657,3466.3,3465.5,0.1732007]
[1754151216310,0.4834,3466.2,3465.5,0.1732007]
[1754151218111,0.50176358,3466.1,3465.5,0.1732007]
[1754151218317,0.50176358,3466.1,3465.3,0.21791546]
[1754151218504,0.4834,3466.0,3465.1,0.002]
[1754151218925,0.4657,3465.9,3465.1,0.002]
[1754151219721,0.4834,3466.0,3465.2,0.4736]
[1754151220240,0.28909,3467.8,3465.3,0.02807268]
[1754151220241,5.1414,3466.5,3465.3,0.02807268]
[1754151220439,5.1404,3466.5,3465.4,7.8407715]
[1754151220640,5.1404,3466.5,3465.5,0.80577567]
[1754151220802,0.28909,3467.8,3465.5,0.80577567]
[1754151220803,0.9491,3466.9,3465.9,7.3671715]
[1754151221003,0.9491,3466.9,3466.0,0.4736]
[1754151221204,0.9491,3466.9,3466.0,0.5016562]
[1754151221399,0.9491,3467.2,3466.4,7.3671715]
[1754151222038,0.4834,3467.2,3466.5,0.4736]
[1754151222742,0.4657,3467.3,3466.5,0.4736]
[1754151222945,0.4657,3467.3,3466.5,0.50164643]
[1754151223606,0.4657,3467.3,3466.5,0.4736]
[1754151223805,0.4834,3467.5,3466.6,0.82816715]
[1754151224052,0.4834,3467.5,3466.7,0.50164291]
[1754151224208,0.4834,3467.5,3466.7,0.4736]
[1754151224542,0.4657,3467.4,3466.6,0.82816715]
[1754151224846,0.4834,3467.3,3466.4,7.3671715]
[1754151225052,0.50175214,3467.2,3465.9,7.3671715]
[1754151225342,0.4834,3467.1,3466.0,0.50165493]
[1754151225768,0.55,3466.9,3465.2,0.6901949]
[1754151226045,0.55,3466.7,3465.2,0.4736]
[1754151226216,0.55,3466.5,3465.2,0.50166776]
[1754151226412,0.9491,3466.4,3465.2,0.68763544]
[1754151226611,0.9491,3466.4,3465.3,0.84997069]
[1754151226940,0.8991,3466.4,3465.3,0.84997069]
[1754151227537,0.8991,3466.4,3465.4,0.4736]
[1754151227944,0.4657,3466.4,3465.4,0.4736]
[1754151228144,0.4657,3466.3,3465.3,0.84997069]
[1754151228449,0.55,3466.2,3465.1,0.002]
[1754151228743,1.0334,3466.2,3465.1,0.002]
[1754151229238,0.9491,3466.1,3465.1,0.002]
[1754151229624,0.9491,3466.0,3465.1,0.002]
[1754151230019,0.9491,3465.9,3465.1,0.002]
[1754151230635,0.4834,3465.8,3465.1,0.002]
[1754151231339,0.4834,3466.1,3465.1,0.4756]
[1754151232129,0.4657,3466.2,3465.1,0.4756]
[1754151232335,0.4657,3466.2,3465.3,7.3671715]
[1754151232663,0.4657,3466.2,3465.4,1.29720452]
[1754151233297,0.9489,3466.2,3465.4,1.29720452]
[1754151233443,0.9489,3466.2,3465.4,0.83430452]
[1754151233834,0.97826358,3466.1,3465.1,0.002]
[1754151234348,0.9422,3466.0,3465.1,0.002]
[1754151234648,0.03606566,3465.9,3465.1,0.002]
[1754151234847,0.9422,3465.8,3465.1,0.002]
[1754151235038,0.97826774,3465.7,3465.1,0.002]
[1754151235470,0.9422,3465.6,3465.1,0.002]
[1754151235850,0.9422,3465.5,3465.1,0.002]
[1754151236172,0.9422,3465.6,3465.1,0.002]
[1754151237133,0.9422,3466.2,3465.1,0.002]
[1754151237340,4.631,3466.1,3465.2,0.4629]
[1754151237839,4.632,3466.1,3465.2,0.4629]
[1754151238052,0.4832,3466.0,3465.2,0.4629]
[1754151238373,0.4832,3466.0,3465.1,0.4742]
[1754151238374,0.459,3465.9,3465.1,0.002]
[1754151238536,0.55,3465.8,3465.1,0.002]
[1754151238736,1.0332,3465.8,3465.1,0.002]
[1754151238936,0.49506774,3465.7,3465.1,0.002]
[1754151239146,0.55,3465.6,3465.1,0.002]
[1754151239483,0.03606983,3465.5,3465.1,0.002]
[1754151239970,0.459,3465.4,3465.1,0.002]
[1754151240140,0.55,3465.3,3465.1,0.002]
[1754151240342,0.49507087,3465.4,3465.1,0.002]
[1754151240343,0.70282709,3465.2,3465.1,0.002]
[1754151240539,1.16182709,3465.2,3465.1,0.002]
[1754151240743,1.64502709,3465.2,3465.1,0.002]
[1754151241284,9.27202709,3465.2,3465.1,0.002]